Workbook

Sheet BN-73-202
A1: Calculate impedance of ferrite cored inductor
A3: Reference:
A4: A method for estimating the impedance of a ferrite cored toroidal inductor at RF | H4: 2873000202
A6: Inputs:
A7: Al (nH for 1t) | B7: 6600
A8: N | B8: 1
A9: Cs (pF) | B9: 10
A11: Constants:
A12: Mix | B12: =Mix!B1 -> #73
A13: µi | B13: =Mix!B2 -> 2500
A15: Calculated values:
A16: 2*pi*N^2*Al | B16: =2*PI()*$B$8^2*$B$7*0.000000001 -> 4.146902303e-05
A18: f (MHz) | B18: 1 | C18: 1.2 | D18: 1.8 | E18: 2 | F18: 2.5 | G18: 3 | H18: 3.5 | I18: 4 | J18: 4.5 | K18: 5 | L18: 5.5 | M18: 6 | N18: =M18+1 -> 7 | O18: 8 | P18: 9 | Q18: 10 | R18: 11 | S18: 12 | T18: 13 | U18: 14 | V18: 15 | W18: 16 | X18: 17 | Y18: 18 | Z18: 19 | AA18: 22 | AB18: 24 | AC18: 26 | AD18: 28 | AE18: 30
A19: µ'' | B19: =csinterpolate(CSTableU2,'BN-73-202'!B18*1000000) -> 1008.474439 | C19: =csinterpolate(CSTableU2,'BN-73-202'!C18*1000000) -> 1096.52243 | D19: =csinterpolate(CSTableU2,'BN-73-202'!D18*1000000) -> 1315.407792 | E19: =csinterpolate(CSTableU2,'BN-73-202'!E18*1000000) -> 1344.738883 | F19: =csinterpolate(CSTableU2,'BN-73-202'!F18*1000000) -> 1309.045496 | G19: =csinterpolate(CSTableU2,'BN-73-202'!G18*1000000) -> 1176.688559 | H19: =csinterpolate(CSTableU2,'BN-73-202'!H18*1000000) -> 1071.203154 | I19: =csinterpolate(CSTableU2,'BN-73-202'!I18*1000000) -> 1015.411118 | J19: =csinterpolate(CSTableU2,'BN-73-202'!J18*1000000) -> 977.5142241 | K19: =csinterpolate(CSTableU2,'BN-73-202'!K18*1000000) -> 940.5531803 | L19: =csinterpolate(CSTableU2,'BN-73-202'!L18*1000000) -> 904.4512935 | M19: =csinterpolate(CSTableU2,'BN-73-202'!M18*1000000) -> 870.0374 | N19: =csinterpolate(CSTableU2,'BN-73-202'!N18*1000000) -> 808.8214325 | O19: =csinterpolate(CSTableU2,'BN-73-202'!O18*1000000) -> 758.7420855 | P19: =csinterpolate(CSTableU2,'BN-73-202'!P18*1000000) -> 719.8165321 | Q19: =csinterpolate(CSTableU2,'BN-73-202'!Q18*1000000) -> 688.5529551 | R19: =csinterpolate(CSTableU2,'BN-73-202'!R18*1000000) -> 659.9679083 | S19: =csinterpolate(CSTableU2,'BN-73-202'!S18*1000000) -> 630.1190269 | T19: =csinterpolate(CSTableU2,'BN-73-202'!T18*1000000) -> 599.1350751 | U19: =csinterpolate(CSTableU2,'BN-73-202'!U18*1000000) -> 568.134619 | V19: =csinterpolate(CSTableU2,'BN-73-202'!V18*1000000) -> 538.2362262 | W19: =csinterpolate(CSTableU2,'BN-73-202'!W18*1000000) -> 510.4073244 | X19: =csinterpolate(CSTableU2,'BN-73-202'!X18*1000000) -> 484.7521219 | Y19: =csinterpolate(CSTableU2,'BN-73-202'!Y18*1000000) -> 461.0689417 | Z19: =csinterpolate(CSTableU2,'BN-73-202'!Z18*1000000) -> 439.1557286 | AA19: =csinterpolate(CSTableU2,'BN-73-202'!AA18*1000000) -> 382.0240616 | AB19: =csinterpolate(CSTableU2,'BN-73-202'!AB18*1000000) -> 349.5545114 | AC19: =csinterpolate(CSTableU2,'BN-73-202'!AC18*1000000) -> 320.909505 | AD19: =csinterpolate(CSTableU2,'BN-73-202'!AD18*1000000) -> 295.6496338 | AE19: =csinterpolate(CSTableU2,'BN-73-202'!AE18*1000000) -> 273.3368518
A20: µ' | B20: =csinterpolate(CSTableU1,'BN-73-202'!B18*1000000) -> 2408.020292 | C20: =csinterpolate(CSTableU1,'BN-73-202'!C18*1000000) -> 2199.140787 | D20: =csinterpolate(CSTableU1,'BN-73-202'!D18*1000000) -> 1540.420448 | E20: =csinterpolate(CSTableU1,'BN-73-202'!E18*1000000) -> 1422.934522 | F20: =csinterpolate(CSTableU1,'BN-73-202'!F18*1000000) -> 1204.223208 | G20: =csinterpolate(CSTableU1,'BN-73-202'!G18*1000000) -> 993.6393415 | H20: =csinterpolate(CSTableU1,'BN-73-202'!H18*1000000) -> 858.6201324 | I20: =csinterpolate(CSTableU1,'BN-73-202'!I18*1000000) -> 781.0229132 | J20: =csinterpolate(CSTableU1,'BN-73-202'!J18*1000000) -> 718.8640614 | K20: =csinterpolate(CSTableU1,'BN-73-202'!K18*1000000) -> 657.139323 | L20: =csinterpolate(CSTableU1,'BN-73-202'!L18*1000000) -> 598.9077931 | M20: =csinterpolate(CSTableU1,'BN-73-202'!M18*1000000) -> 547.3427028 | N20: =csinterpolate(CSTableU1,'BN-73-202'!N18*1000000) -> 464.4772914 | O20: =csinterpolate(CSTableU1,'BN-73-202'!O18*1000000) -> 400.1066471 | P20: =csinterpolate(CSTableU1,'BN-73-202'!P18*1000000) -> 346.7660507 | Q20: =csinterpolate(CSTableU1,'BN-73-202'!Q18*1000000) -> 300.9560146 | R20: =csinterpolate(CSTableU1,'BN-73-202'!R18*1000000) -> 259.7481735 | S20: =csinterpolate(CSTableU1,'BN-73-202'!S18*1000000) -> 222.586739 | T20: =csinterpolate(CSTableU1,'BN-73-202'!T18*1000000) -> 190.1009588 | U20: =csinterpolate(CSTableU1,'BN-73-202'!U18*1000000) -> 162.8116008 | V20: =csinterpolate(CSTableU1,'BN-73-202'!V18*1000000) -> 140.1240668 | W20: =csinterpolate(CSTableU1,'BN-73-202'!W18*1000000) -> 120.8266963 | X20: =csinterpolate(CSTableU1,'BN-73-202'!X18*1000000) -> 103.7012976 | Y20: =csinterpolate(CSTableU1,'BN-73-202'!Y18*1000000) -> 87.69673869 | Z20: =csinterpolate(CSTableU1,'BN-73-202'!Z18*1000000) -> 73.05620083 | AA20: =csinterpolate(CSTableU1,'BN-73-202'!AA18*1000000) -> 43.53632453 | AB20: =csinterpolate(CSTableU1,'BN-73-202'!AB18*1000000) -> 30.8693501 | AC20: =csinterpolate(CSTableU1,'BN-73-202'!AC18*1000000) -> 18.38672156 | AD20: =csinterpolate(CSTableU1,'BN-73-202'!AD18*1000000) -> 10.4948909 | AE20: =csinterpolate(CSTableU1,'BN-73-202'!AE18*1000000) -> 2.287102048
A21: Rl | B21: =B19/$B$13*$B$16*B18*1000000 -> 16.72817989 | C21: 21.82642268 | D21: 39.27504673 | E21: 44.61200618 | F21: 54.28483783 | G21: 58.55534996 | H21: 62.19044755 | I21: 67.37297123 | J21: 72.96580776 | K21: 78.00764299 | L21: 82.51476533 | M21: 86.59104234 | N21: 93.91489691 | O21: 100.6857376 | P21: 107.460318 | Q21: 114.2144734 | R21: 120.4201873 | S21: 125.4260181 | T21: 129.1968404 | U21: 131.9359305 | V21: 133.9207828 | W21: 135.4629958 | X21: 136.694939 | Y21: 137.6645656 | Z21: 138.4063286 | AA21: 139.4110485 | AB21: 139.1585672 | AC21: 138.401158 | AD21: 137.3153765 | AE21: 136.0201464
A22: Xl | B22: =B20/$B$13*$B$16*B18*1000000 -> 39.94329958 | C22: 43.77418557 | D22: 45.99340633 | E22: 47.20616357 | F22: 49.93795996 | G22: 49.44630328 | H22: 49.84859326 | I22: 51.82121148 | J22: 53.65906257 | K22: 54.50185143 | L22: 54.63946634 | M22: 54.47464116 | N22: 53.93197458 | O22: 53.09450164 | P22: 51.76817763 | Q22: 49.92140759 | R22: 47.39461315 | S22: 44.3061821 | T22: 40.99316541 | U22: 37.80917294 | V22: 34.8648489 | W22: 32.06761633 | X22: 29.24266219 | Y22: 26.18422615 | Z22: 23.02472648 | AA22: 15.88759783 | AB22: 12.28916918 | AC22: 7.92978555 | AD22: 4.874384171 | AE22: 1.13812665
A23: Yl | B23: =IMDIV(1,COMPLEX(B21,B22)) -> 0.00892027258059787-0.0212996944335343i | C23: 0.00912257697184182-0.0182958693291824i | D23: 0.0107369809909587-0.0125736407881921i | E23: 0.0105749409702729-0.0111898664953082i | F23: 0.00997765029051264-0.00917868636292061i | G23: 0.00996913184815337-0.0084183036585875i | H23: 0.00978986454645697-0.00784704074463477i | I23: 0.00932555282062805-0.00717292760005914i | J23: 0.00889468522576377-0.00654115243420243i | K23: 0.00861425664357773-0.00601855046254171i | L23: 0.00842489647262487-0.00557878151110467i | M23: 0.00827395561906675-0.00520516615936502i | N23: 0.00800729588214911-0.0045983043389321i | O23: 0.00777097361493143-0.00409785915014598i | P23: 0.00755291358933246-0.00363855774335508i | Q23: 0.00735108390973326-0.00321304686865982i | R23: 0.00719043647618695-0.00282999024316236i | S23: 0.0070883286789382-0.0025039205261914i | T23: 0.00703216795677106-0.00223125289591131i | U23: 0.00700422407200793-0.00200721606398762i | V23: 0.00699313048827229-0.00182058701297074i | W23: 0.00699035578739112-0.00165479912907304i | X23: 0.0069954178345555-0.0014965048611442i | Y23: 0.00701041604082902-0.00133340281245425i | Z23: 0.00703053774784008-0.00116957230463212i | AA23: 0.00708106799393441-0.00080697449508319i | AB23: 0.00713043844399327-0.000629692919246447i | AC23: 0.00720173128113919-0.000412627939481254i | AD23: 0.00727334055810083-0.000258187079943507i | AE23: 0.00735133742338629-0.0000615111309327562i
A24: Yc | B24: =COMPLEX(0,2*PI()*B18*1000000*$B$9*0.000000000001) -> 0.0000628318530717959i | C24: 0.000075398223686155i | D24: 0.000113097335529233i | E24: 0.000125663706143592i | F24: 0.00015707963267949i | G24: 0.000188495559215388i | H24: 0.000219911485751286i | I24: 0.000251327412287183i | J24: 0.000282743338823081i | K24: 0.000314159265358979i | L24: 0.000345575191894877i | M24: 0.000376991118430775i | N24: 0.000439822971502571i | O24: 0.000502654824574367i | P24: 0.000565486677646163i | Q24: 0.000628318530717959i | R24: 0.000691150383789754i | S24: 0.00075398223686155i | T24: 0.000816814089933346i | U24: 0.000879645943005142i | V24: 0.000942477796076938i | W24: 0.00100530964914873i | X24: 0.00106814150222053i | Y24: 0.00113097335529233i | Z24: 0.00119380520836412i | AA24: 0.00138230076757951i | AB24: 0.0015079644737231i | AC24: 0.00163362817986669i | AD24: 0.00175929188601028i | AE24: 0.00188495559215388i
A25: Z | B25: =IMDIV(1,IMSUM(B23,B24)) -> 16.8124441865423+40.0260825670155i | C25: 21.9711552481291+43.8828634264823i | D25: 39.6860623747513+46.056699280933i | E25: 45.144603456497+47.2332705102764i | F25: 55.1425375582357+49.8588619036871i | G25: 59.6549166906775+49.2468676336392i | H25: 63.5645439822008+49.5221349522847i | I25: 69.1424538183099+51.31882586877i | J25: 75.1982700703257+52.9104207085089i | K25: 80.6990171005278+53.4391743613478i | L25: 85.6490448639312+53.2017365759463i | M25: 90.1600769038852+52.6119129758096i | N25: 98.3579414872756+51.0808733726699i | O25: 105.996453012938+49.0387595236641i | P25: 113.594269512712+46.2183578219262i | Q25: 121.066766745099+42.5685118863526i | R25: 127.768624098036+38.005568494083i | S25: 132.972597143286+32.8277439876739i | T25: 136.674274491841+27.4904409008042i | U25: 139.164411993655+22.403285682315i | V25: 140.777806786288+17.6771032487447i | W25: 141.82986313446+13.1777275501617i | X25: 142.416696834088+8.72086500985115i | Y25: 142.526048776866+4.1155147593669i | Z25: 142.234940701769-0.490256328744076i | AA25: 140.29549935372-11.3988012486713i | AB25: 138.147935229412-17.0159805423867i | AC25: 134.975666208904-22.884125282329i | AD25: 131.871401114777-27.2162141198898i | AE25: 128.145503867104-31.785537215788i
A26: R | B26: =IMREAL(B25) -> 16.81244419 | C26: 21.97115525 | D26: 39.68606237 | E26: 45.14460346 | F26: 55.14253756 | G26: 59.65491669 | H26: 63.56454398 | I26: 69.14245382 | J26: 75.19827007 | K26: 80.6990171 | L26: 85.64904486 | M26: 90.1600769 | N26: 98.35794149 | O26: 105.996453 | P26: 113.5942695 | Q26: 121.0667667 | R26: 127.7686241 | S26: 132.9725971 | T26: 136.6742745 | U26: 139.164412 | V26: 140.7778068 | W26: 141.8298631 | X26: 142.4166968 | Y26: 142.5260488 | Z26: 142.2349407 | AA26: 140.2954994 | AB26: 138.1479352 | AC26: 134.9756662 | AD26: 131.8714011 | AE26: 128.1455039
A27: X | B27: =IMAGINARY(B25) -> 40.02608257 | C27: 43.88286343 | D27: 46.05669928 | E27: 47.23327051 | F27: 49.8588619 | G27: 49.24686763 | H27: 49.52213495 | I27: 51.31882587 | J27: 52.91042071 | K27: 53.43917436 | L27: 53.20173658 | M27: 52.61191298 | N27: 51.08087337 | O27: 49.03875952 | P27: 46.21835782 | Q27: 42.56851189 | R27: 38.00556849 | S27: 32.82774399 | T27: 27.4904409 | U27: 22.40328568 | V27: 17.67710325 | W27: 13.17772755 | X27: 8.72086501 | Y27: 4.115514759 | Z27: -0.4902563287 | AA27: -11.39880125 | AB27: -17.01598054 | AC27: -22.88412528 | AD27: -27.21621412 | AE27: -31.78553722
A28: |Z| | B28: =IMABS(B25) -> 43.41365644 | C28: 49.0758328 | D28: 60.79640693 | E28: 65.33771548 | F28: 74.34114311 | G28: 77.35607964 | H28: 80.57849032 | I28: 86.10633431 | J28: 91.94722639 | K28: 96.78882537 | L28: 100.8274946 | M28: 104.3879919 | N28: 110.8311341 | O28: 116.790616 | P28: 122.6368406 | Q28: 128.3325376 | R28: 133.3013299 | S28: 136.9648581 | T28: 139.4115549 | U28: 140.9561661 | V28: 141.8833002 | W28: 142.4407336 | X28: 142.6834574 | Y28: 142.5854552 | Z28: 142.2357856 | AA28: 140.7578055 | AB28: 139.191938 | AC28: 136.9018395 | AD28: 134.6506173 | AE28: 132.0287489
A32: Module | B32: Version | C32: Date
A33: CubicSpline | B33: =CubicSpline_version("v") -> 1.03 | C33: =CubicSpline_version("d") -> 2010-07-06
A35: Copyright: Owen Duffy 2010. All rights reserved.
B60: =1/IMREAL(IMDIV(1,B25)) -> 112.1041976 | C60: =1/IMREAL(IMDIV(1,C25)) -> 109.6181488 | D60: 93.13605015 | E60: 94.56317561 | F60: 100.2239977 | G60: 100.3096373 | H60: 102.1464593 | I60: 107.2322488 | J60: 112.4266879 | K60: 116.0866272 | L60: 118.6958206 | M60: 120.8611752 | N60: 124.8861057 | O60: 128.684004 | P60: 132.3992375 | Q60: 136.0343607 | R60: 139.0736158 | S60: 141.0769795 | T60: 142.203657 | U60: 142.7709893 | V60: 142.9974747 | W60: 143.0542351 | X60: 142.9507177 | Y60: 142.6448864 | Z60: 142.2366305 | AA60: 141.221635 | AB60: 140.2438304 | AC60: 138.8555003 | AD60: 137.4884061 | AE60: 136.0296695
B61: =-1/IMAGINARY(IMDIV(1,B25)) -> 47.08793477 | C61: =-1/IMAGINARY(IMDIV(1,C25)) -> 54.88332295 | D61: 80.25332152 | E61: 90.38156829 | F61: 110.8450002 | G61: 121.5095161 | H61: 131.1109286 | I61: 144.4752619 | J61: 159.7850164 | K61: 175.3035452 | L61: 191.0874403 | M61: 207.1175944 | N61: 240.4724013 | O61: 278.148308 | P61: 325.4073787 | Q61: 386.8878541 | R61: 467.543185 | S61: 571.4487226 | T61: 706.9941773 | U61: 886.8628047 | V61: 1138.810504 | W61: 1539.67082 | X61: 2334.466707 | Y61: 4939.992499 | Z61: -41266.20611 | AA61: -1738.144159 | AB61: -1138.600009 | AC61: -819.0006578 | AD61: -666.1760031 | AE61: -548.412645

Sheet BN-73-202 (2)
A1: Calculate impedance of ferrite cored inductor
A3: Reference:
A4: A method for estimating the impedance of a ferrite cored toroidal inductor at RF | H4: 2873000202
A6: Inputs:
A7: Al (nH for 1t) | B7: 6600
A8: N | B8: 3
A9: Cs (pF) | B9: 13
A11: Constants:
A12: Mix | B12: =Mix!B1 -> #73
A13: µi | B13: =Mix!B2 -> 2500
A15: Calculated values:
A16: 2*pi*N^2*Al | B16: =2*PI()*$B$8^2*$B$7*0.000000001 -> 0.0003732212072
A18: f (MHz) | B18: 1.5 | C18: 1.2 | D18: 1.8 | E18: 2 | F18: 2.5 | G18: 3 | H18: 3.5 | I18: 4 | J18: 4.5 | K18: 5 | L18: 5.5 | M18: 6 | N18: =M18+1 -> 7 | O18: 8 | P18: 9 | Q18: 10 | R18: 11 | S18: 12 | T18: 13 | U18: 14 | V18: 15 | W18: 16 | X18: 17 | Y18: 18 | Z18: 19 | AA18: 22 | AB18: 24 | AC18: 26 | AD18: 28 | AE18: 30
A19: µ'' | B19: =csinterpolate(CSTableU2,'BN-73-202 (2)'!B18*1000000) -> 1218.641907 | C19: =csinterpolate(CSTableU2,'BN-73-202 (2)'!C18*1000000) -> 1096.52243 | D19: =csinterpolate(CSTableU2,'BN-73-202 (2)'!D18*1000000) -> 1315.407792 | E19: =csinterpolate(CSTableU2,'BN-73-202 (2)'!E18*1000000) -> 1344.738883 | F19: =csinterpolate(CSTableU2,'BN-73-202 (2)'!F18*1000000) -> 1309.045496 | G19: =csinterpolate(CSTableU2,'BN-73-202 (2)'!G18*1000000) -> 1176.688559 | H19: =csinterpolate(CSTableU2,'BN-73-202 (2)'!H18*1000000) -> 1071.203154 | I19: =csinterpolate(CSTableU2,'BN-73-202 (2)'!I18*1000000) -> 1015.411118 | J19: =csinterpolate(CSTableU2,'BN-73-202 (2)'!J18*1000000) -> 977.5142241 | K19: =csinterpolate(CSTableU2,'BN-73-202 (2)'!K18*1000000) -> 940.5531803 | L19: =csinterpolate(CSTableU2,'BN-73-202 (2)'!L18*1000000) -> 904.4512935 | M19: =csinterpolate(CSTableU2,'BN-73-202 (2)'!M18*1000000) -> 870.0374 | N19: =csinterpolate(CSTableU2,'BN-73-202 (2)'!N18*1000000) -> 808.8214325 | O19: =csinterpolate(CSTableU2,'BN-73-202 (2)'!O18*1000000) -> 758.7420855 | P19: =csinterpolate(CSTableU2,'BN-73-202 (2)'!P18*1000000) -> 719.8165321 | Q19: =csinterpolate(CSTableU2,'BN-73-202 (2)'!Q18*1000000) -> 688.5529551 | R19: =csinterpolate(CSTableU2,'BN-73-202 (2)'!R18*1000000) -> 659.9679083 | S19: =csinterpolate(CSTableU2,'BN-73-202 (2)'!S18*1000000) -> 630.1190269 | T19: =csinterpolate(CSTableU2,'BN-73-202 (2)'!T18*1000000) -> 599.1350751 | U19: =csinterpolate(CSTableU2,'BN-73-202 (2)'!U18*1000000) -> 568.134619 | V19: =csinterpolate(CSTableU2,'BN-73-202 (2)'!V18*1000000) -> 538.2362262 | W19: =csinterpolate(CSTableU2,'BN-73-202 (2)'!W18*1000000) -> 510.4073244 | X19: =csinterpolate(CSTableU2,'BN-73-202 (2)'!X18*1000000) -> 484.7521219 | Y19: =csinterpolate(CSTableU2,'BN-73-202 (2)'!Y18*1000000) -> 461.0689417 | Z19: =csinterpolate(CSTableU2,'BN-73-202 (2)'!Z18*1000000) -> 439.1557286 | AA19: =csinterpolate(CSTableU2,'BN-73-202 (2)'!AA18*1000000) -> 382.0240616 | AB19: =csinterpolate(CSTableU2,'BN-73-202 (2)'!AB18*1000000) -> 349.5545114 | AC19: =csinterpolate(CSTableU2,'BN-73-202 (2)'!AC18*1000000) -> 320.909505 | AD19: =csinterpolate(CSTableU2,'BN-73-202 (2)'!AD18*1000000) -> 295.6496338 | AE19: =csinterpolate(CSTableU2,'BN-73-202 (2)'!AE18*1000000) -> 273.3368518
A20: µ' | B20: =csinterpolate(CSTableU1,'BN-73-202 (2)'!B18*1000000) -> 1819.337023 | C20: =csinterpolate(CSTableU1,'BN-73-202 (2)'!C18*1000000) -> 2199.140787 | D20: =csinterpolate(CSTableU1,'BN-73-202 (2)'!D18*1000000) -> 1540.420448 | E20: =csinterpolate(CSTableU1,'BN-73-202 (2)'!E18*1000000) -> 1422.934522 | F20: =csinterpolate(CSTableU1,'BN-73-202 (2)'!F18*1000000) -> 1204.223208 | G20: =csinterpolate(CSTableU1,'BN-73-202 (2)'!G18*1000000) -> 993.6393415 | H20: =csinterpolate(CSTableU1,'BN-73-202 (2)'!H18*1000000) -> 858.6201324 | I20: =csinterpolate(CSTableU1,'BN-73-202 (2)'!I18*1000000) -> 781.0229132 | J20: =csinterpolate(CSTableU1,'BN-73-202 (2)'!J18*1000000) -> 718.8640614 | K20: =csinterpolate(CSTableU1,'BN-73-202 (2)'!K18*1000000) -> 657.139323 | L20: =csinterpolate(CSTableU1,'BN-73-202 (2)'!L18*1000000) -> 598.9077931 | M20: =csinterpolate(CSTableU1,'BN-73-202 (2)'!M18*1000000) -> 547.3427028 | N20: =csinterpolate(CSTableU1,'BN-73-202 (2)'!N18*1000000) -> 464.4772914 | O20: =csinterpolate(CSTableU1,'BN-73-202 (2)'!O18*1000000) -> 400.1066471 | P20: =csinterpolate(CSTableU1,'BN-73-202 (2)'!P18*1000000) -> 346.7660507 | Q20: =csinterpolate(CSTableU1,'BN-73-202 (2)'!Q18*1000000) -> 300.9560146 | R20: =csinterpolate(CSTableU1,'BN-73-202 (2)'!R18*1000000) -> 259.7481735 | S20: =csinterpolate(CSTableU1,'BN-73-202 (2)'!S18*1000000) -> 222.586739 | T20: =csinterpolate(CSTableU1,'BN-73-202 (2)'!T18*1000000) -> 190.1009588 | U20: =csinterpolate(CSTableU1,'BN-73-202 (2)'!U18*1000000) -> 162.8116008 | V20: =csinterpolate(CSTableU1,'BN-73-202 (2)'!V18*1000000) -> 140.1240668 | W20: =csinterpolate(CSTableU1,'BN-73-202 (2)'!W18*1000000) -> 120.8266963 | X20: =csinterpolate(CSTableU1,'BN-73-202 (2)'!X18*1000000) -> 103.7012976 | Y20: =csinterpolate(CSTableU1,'BN-73-202 (2)'!Y18*1000000) -> 87.69673869 | Z20: =csinterpolate(CSTableU1,'BN-73-202 (2)'!Z18*1000000) -> 73.05620083 | AA20: =csinterpolate(CSTableU1,'BN-73-202 (2)'!AA18*1000000) -> 43.53632453 | AB20: =csinterpolate(CSTableU1,'BN-73-202 (2)'!AB18*1000000) -> 30.8693501 | AC20: =csinterpolate(CSTableU1,'BN-73-202 (2)'!AC18*1000000) -> 18.38672156 | AD20: =csinterpolate(CSTableU1,'BN-73-202 (2)'!AD18*1000000) -> 10.4948909 | AE20: =csinterpolate(CSTableU1,'BN-73-202 (2)'!AE18*1000000) -> 2.287102048
A21: Rl | B21: =B19/$B$13*$B$16*B18*1000000 -> 272.8938021 | C21: 196.4378041 | D21: 353.4754206 | E21: 401.5080556 | F21: 488.5635405 | G21: 526.9981497 | H21: 559.714028 | I21: 606.3567411 | J21: 656.6922698 | K21: 702.0687869 | L21: 742.632888 | M21: 779.319381 | N21: 845.2340722 | O21: 906.1716388 | P21: 967.1428624 | Q21: 1027.930261 | R21: 1083.781686 | S21: 1128.834163 | T21: 1162.771563 | U21: 1187.423375 | V21: 1205.287045 | W21: 1219.166962 | X21: 1230.254451 | Y21: 1238.981091 | Z21: 1245.656957 | AA21: 1254.699437 | AB21: 1252.427105 | AC21: 1245.610422 | AD21: 1235.838388 | AE21: 1224.181318
A22: Xl | B22: =B20/$B$13*$B$16*B18*1000000 -> 407.4090962 | C22: 393.9676701 | D22: 413.940657 | E22: 424.8554721 | F22: 449.4416396 | G22: 445.0167295 | H22: 448.6373394 | I22: 466.3909033 | J22: 482.9315631 | K22: 490.5166629 | L22: 491.7551971 | M22: 490.2717704 | N22: 485.3877712 | O22: 477.8505147 | P22: 465.9135987 | Q22: 449.2926683 | R22: 426.5515183 | S22: 398.7556389 | T22: 368.9384887 | U22: 340.2825564 | V22: 313.7836401 | W22: 288.608547 | X22: 263.1839597 | Y22: 235.6580353 | Z22: 207.2225384 | AA22: 142.9883805 | AB22: 110.6025227 | AC22: 71.36806995 | AD22: 43.86945754 | AE22: 10.24313985
A23: Yl | B23: =IMDIV(1,COMPLEX(B21,B22)) -> 0.0011349144175001-0.00169433843289225i | C23: 0.00101361966353798-0.00203287436990916i | D23: 0.0011929978878843-0.00139707119868801i | E23: 0.00117499344114143-0.00124331849947868i | F23: 0.00110862781005696-0.00101985404032451i | G23: 0.00110768131646148-0.000935367073176388i | H23: 0.00108776272738411-0.000871893416070528i | I23: 0.00103617253562534-0.000796991955562126i | J23: 0.000988298358418197-0.000726794714911382i | K23: 0.000957139627064191-0.000668727829171301i | L23: 0.00093609960806943-0.000619864612344963i | M23: 0.000919328402118528-0.000578351795485001i | N23: 0.000889699542461013-0.000510922704325789i | O23: 0.000863441512770161-0.000455317683349555i | P23: 0.00083921262103694-0.000404284193706119i | Q23: 0.000816787101081474-0.000357005207628869i | R23: 0.000798937386242992-0.000314443360351372i | S23: 0.000787592075437581-0.000278213391799047i | T23: 0.000781351995196783-0.00024791698843459i | U23: 0.000778247119111991-0.000223024007109735i | V23: 0.000777014498696921-0.000202287445885638i | W23: 0.00077670619859901-0.000183866569897003i | X23: 0.000777268648283945-0.000166278317904911i | Y23: 0.000778935115647672-0.000148155868050472i | Z23: 0.000781170860871119-0.000129952478292457i | AA23: 0.000786785332659379-0.0000896638327870212i | AB23: 0.000792270938221475-0.0000699658799162719i | AC23: 0.000800192364571026-0.0000458475488312509i | AD23: 0.000808148950900093-0.0000286874533270564i | AE23: 0.000816815269265142-6.83457010363956E-06i
A24: Yc | B24: =COMPLEX(0,2*PI()*B18*1000000*$B$9*0.000000000001) -> 0.000122522113490002i | C24: 0.0000980176907920015i | D24: 0.000147026536188002i | E24: 0.000163362817986669i | F24: 0.000204203522483337i | G24: 0.000245044226980004i | H24: 0.000285884931476671i | I24: 0.000326725635973338i | J24: 0.000367566340470006i | K24: 0.000408407044966673i | L24: 0.00044924774946334i | M24: 0.000490088453960008i | N24: 0.000571769862953342i | O24: 0.000653451271946677i | P24: 0.000735132680940012i | Q24: 0.000816814089933346i | R24: 0.000898495498926681i | S24: 0.000980176907920015i | T24: 0.00106185831691335i | U24: 0.00114353972590668i | V24: 0.00122522113490002i | W24: 0.00130690254389335i | X24: 0.00138858395288669i | Y24: 0.00147026536188002i | Z24: 0.00155194677087336i | AA24: 0.00179699099785336i | AB24: 0.00196035381584003i | AC24: 0.0021237166338267i | AD24: 0.00228707945181337i | AE24: 0.00245044226980004i
A25: Z | B25: =IMDIV(1,IMSUM(B23,B24)) -> 301.94837486668+418.187817437251i | C25: 212.450102744244+405.537219788184i | D25: 399.549757327941+418.655428164014i | E25: 461.340078777866+424.025208763832i | F25: 585.231266547391+430.572083151784i | G25: 650.237170878802+405.237109115173i | H25: 712.523725156844+383.856642542311i | I25: 800.254391941043+363.195003432278i | J25: 893.757842326157+324.864626262184i | K25: 972.818369128387+264.585054864921i | L25: 1033.91569389562+188.445172560593i | M25: 1077.81566873764+103.479466370836i | N25: 1118.74227448791-76.5115473149726i | O25: 1100.22239297462-252.467605218099i | P25: 1031.30498903694-406.578365180019i | Q25: 929.682779115438-523.363308500815i | R25: 815.726799455459-596.325807151865i | S25: 707.595531158401-630.664353456665i | T25: 613.782389433325-639.382578560395i | U25: 535.607434960077-633.519933292955i | V25: 470.87653694858-619.90538634596i | W25: 416.580082938053-602.331254770047i | X25: 370.4494042918-582.555845190989i | Y25: 330.798264605955-561.473629050889i | Z25: 296.764100709073-540.210699846917i | AA25: 222.633263778511-483.115029371029i | AB25: 188.579373385877-449.957401205431i | AC25: 161.399140143591-419.107077869959i | AD25: 140.463630611022-392.529049375065i | AE25: 123.043889912468-368.101586863338i
A26: R | B26: =IMREAL(B25) -> 301.9483749 | C26: 212.4501027 | D26: 399.5497573 | E26: 461.3400788 | F26: 585.2312665 | G26: 650.2371709 | H26: 712.5237252 | I26: 800.2543919 | J26: 893.7578423 | K26: 972.8183691 | L26: 1033.915694 | M26: 1077.815669 | N26: 1118.742274 | O26: 1100.222393 | P26: 1031.304989 | Q26: 929.6827791 | R26: 815.7267995 | S26: 707.5955312 | T26: 613.7823894 | U26: 535.607435 | V26: 470.8765369 | W26: 416.5800829 | X26: 370.4494043 | Y26: 330.7982646 | Z26: 296.7641007 | AA26: 222.6332638 | AB26: 188.5793734 | AC26: 161.3991401 | AD26: 140.4636306 | AE26: 123.0438899
A27: X | B27: =IMAGINARY(B25) -> 418.1878174 | C27: 405.5372198 | D27: 418.6554282 | E27: 424.0252088 | F27: 430.5720832 | G27: 405.2371091 | H27: 383.8566425 | I27: 363.1950034 | J27: 324.8646263 | K27: 264.5850549 | L27: 188.4451726 | M27: 103.4794664 | N27: -76.51154731 | O27: -252.4676052 | P27: -406.5783652 | Q27: -523.3633085 | R27: -596.3258072 | S27: -630.6643535 | T27: -639.3825786 | U27: -633.5199333 | V27: -619.9053863 | W27: -602.3312548 | X27: -582.5558452 | Y27: -561.4736291 | Z27: -540.2106998 | AA27: -483.1150294 | AB27: -449.9574012 | AC27: -419.1070779 | AD27: -392.5290494 | AE27: -368.1015869
A28: |Z| | B28: =IMABS(B25) -> 515.8041021 | C28: 457.8159923 | D28: 578.7161447 | E28: 626.6035796 | F28: 726.5589819 | G28: 766.1758891 | H28: 809.3429316 | I28: 878.8160799 | J28: 950.9679837 | K28: 1008.157146 | L28: 1050.948736 | M28: 1082.771728 | N28: 1121.355561 | O28: 1128.817614 | P28: 1108.555794 | Q28: 1066.873574 | R28: 1010.45271 | S28: 947.8549269 | T28: 886.3063259 | U28: 829.5919661 | V28: 778.4647719 | W28: 732.3536755 | X28: 690.3651743 | Y28: 651.6748637 | Z28: 616.3574707 | AA28: 531.9452056 | AB28: 487.8768728 | AC28: 449.1107048 | AD28: 416.904169 | AE28: 388.1218586
A32: Module | B32: Version | C32: Date
A33: CubicSpline | B33: =CubicSpline_version("v") -> 1.03 | C33: =CubicSpline_version("d") -> 2010-07-06
A35: Copyright: Owen Duffy 2010. All rights reserved.
B60: =1/IMREAL(IMDIV(1,B25)) -> 881.1237082 | C60: =1/IMREAL(IMDIV(1,C25)) -> 986.5633393 | D60: 838.2244513 | E60: 851.0685805 | F60: 902.0159795 | G60: 902.7867358 | H60: 919.3181333 | I60: 965.0902389 | J60: 1011.840191 | K60: 1044.779645 | L60: 1068.262385 | M60: 1087.750577 | N60: 1123.974951 | O60: 1158.156036 | P60: 1191.593137 | Q60: 1224.309246 | R60: 1251.662542 | S60: 1269.692816 | T60: 1279.832913 | U60: 1284.938904 | V60: 1286.977272 | W60: 1287.488116 | X60: 1286.556459 | Y60: 1283.803978 | Z60: 1280.129675 | AA60: 1270.994715 | AB60: 1262.194474 | AC60: 1249.699503 | AD60: 1237.395654 | AE60: 1224.267025
B61: =-1/IMAGINARY(IMDIV(1,B25)) -> 636.2066532 | C61: =-1/IMAGINARY(IMDIV(1,C25)) -> 516.8341463 | D61: 799.971417 | E61: 925.9639235 | F61: 1226.015282 | G61: 1448.597574 | H61: 1706.459934 | I61: 2126.454646 | J61: 2783.744468 | K61: 3841.414365 | L61: 5861.085376 | M61: 11329.73194 | N61: -16434.62115 | O61: -5047.099823 | P61: -3022.531577 | Q61: -2174.816622 | R61: -1712.175907 | S61: -1424.575462 | T61: -1228.589783 | U61: -1086.347555 | V61: -977.5804734 | W61: -890.4434258 | X61: -818.1259837 | Y61: -756.3670064 | Z61: -703.237703 | AA61: -585.7108236 | AB61: -528.9919497 | AC61: -481.2622736 | AD61: -442.7929255 | AE61: -409.2309908

Sheet Mix
A1: Mix | B1: #73
A2: µi | B2: 2500
A5: # #73 mix u' | E5: CSTable | J5: # #73 mix u'' | N5: CSTable
A6: 102389.7329 | B6: 2391.175304 | E6: =cstable(A6:A24,B6:B24) -> 102389.7329 | F6: 2391.175304 | G6: 0 | J6: 101187.812 | K6: 28.0688567 | N6: =cstable(Mix!J6:J29,Mix!K6:K29) -> 101187.812 | O6: 28.0688567 | P6: 0
A7: 205504.1104 | B7: 2419.971635 | E7: 205504.1104 | F7: 2419.971635 | G7: 3.497862594e-09 | J7: 164204.3339 | K7: 40.40208858 | N7: 164204.3339 | O7: 40.40208858 | P7: 8.505503864e-10
A8: 398107.1706 | B8: 2536.746009 | E8: 398107.1706 | F8: 2536.746009 | G8: -5.533673902e-10 | J8: 242446.2017 | K8: 60.22408287 | N8: 242446.2017 | O8: 60.22408287 | P8: 1.34806329e-09
A9: 608997.3244 | B9: 2627.922497 | E9: 608997.3244 | F9: 2627.922497 | G9: -6.026196158e-09 | J9: 333485.4751 | K9: 99.74579249 | N9: 333485.4751 | O9: 99.74579249 | P9: 6.169815795e-09
A10: 818126.5992 | B10: 2537.361787 | E10: 818126.5992 | F10: 2537.361787 | G10: -6.374057805e-11 | J10: 448004.1647 | K10: 208.8355099 | N10: 448004.1647 | O10: 208.8355099 | P10: 3.943633019e-09
A11: 1048365.741 | B11: 2365.244508 | E11: 1048365.741 | F11: 2365.244508 | G11: -2.479444721e-09 | J11: 601848.4959 | K11: 432.0922027 | N11: 601848.4959 | O11: 432.0922027 | P11: 1.094259438e-09
A12: 1566288.628 | B12: 1744.212639 | E12: 1566288.628 | F12: 1744.212639 | G12: 1.960891044e-09 | J12: 799031.8714 | K12: 758.6278381 | N12: 799031.8714 | O12: 758.6278381 | P12: -7.406890537e-10
A13: 2312610.878 | B13: 1286.311989 | E13: 2312610.878 | F13: 1286.311989 | G13: -2.153215571e-10 | J13: 920666.9732 | K13: 936.9115188 | N13: 920666.9732 | O13: 936.9115188 | P13: -7.276883798e-09
A14: 2998631.349 | B14: 994.1281887 | E14: 2998631.349 | F14: 994.1281887 | G14: 4.069289438e-10 | J14: 1152228.098 | K14: 1078.547046 | N14: 1152228.098 | O14: 1078.547046 | P14: 4.577895802e-10
A15: 4173619.189 | B15: 759.4224177 | E15: 4173619.189 | F15: 759.4224177 | G15: -8.446103911e-12 | J15: 1741909.714 | K15: 1301.290107 | N15: 1741909.714 | O15: 1301.290107 | P15: -7.977064573e-10
A16: 5673435.918 | B16: 580.1446046 | E16: 5673435.918 | F16: 580.1446046 | G16: 3.224252009e-11 | J16: 2180025.323 | K16: 1348.00498 | N16: 2180025.323 | O16: 1348.00498 | P16: -5.862263864e-10
A17: 7621690.026 | B17: 422.9129377 | E17: 7621690.026 | F17: 422.9129377 | G17: 1.195645787e-11 | J17: 2664655.233 | K17: 1271.417071 | N17: 2664655.233 | O17: 1271.417071 | P17: -3.231342961e-10
A18: 10238973.29 | B18: 290.7686838 | E18: 10238973.29 | F18: 290.7686838 | G18: 3.552081157e-12 | J18: 3070290.63 | K18: 1157.72775 | N18: 3070290.63 | O18: 1157.72775 | P18: 3.106441193e-10
A19: 13276295.89 | B19: 182.0350284 | E19: 13276295.89 | F19: 182.0350284 | G19: 5.489966538e-12 | J19: 4273357.542 | K19: 994.3278347 | N19: 4273357.542 | O19: 994.3278347 | P19: -1.381493696e-12
A20: 17214619.82 | B20: 100.1917314 | E20: 17214619.82 | F20: 100.1917314 | G20: 6.923303468e-13 | J20: 6089973.244 | K20: 864.087882 | N20: 6089973.244 | O20: 864.087882 | P20: 1.06638724e-11
A21: 20070773.16 | B21: 59.85359009 | E21: 20070773.16 | F21: 59.85359009 | G21: 3.122643079e-12 | J21: 8181265.992 | K21: 750.8972937 | N21: 8181265.992 | O21: 750.8972937 | P21: 1.175203789e-11
A22: 23678761.02 | B22: 32.94326759 | E22: 23678761.02 | F22: 32.94326759 | G22: -6.539960355e-13 | J22: 10990707.27 | K22: 660.2364607 | N22: 10990707.27 | O22: 660.2364607 | P22: -2.264031417e-12
A23: 26333756.81 | B23: 16.7039654 | E23: 26333756.81 | F23: 16.7039654 | G23: 1.874831466e-12 | J23: 15117750.71 | K23: 534.8401556 | N23: 15117750.71 | O23: 534.8401556 | P23: 2.352340279e-12
A24: 27935332.58 | B24: 10.70481109 | E24: 27935332.58 | F24: 10.70481109 | G24: 0 | J24: 21291444.57 | K24: 394.5275336 | N24: 21291444.57 | O24: 394.5275336 | P24: 1.104913607e-12
J25: 29286445.65 | K25: 280.9862723 | N25: 29286445.65 | O25: 280.9862723 | P25: 6.657670554e-13
J26: 43754793.75 | K26: 175.957127 | N26: 43754793.75 | O26: 175.957127 | P26: 2.010786852e-13
J27: 62355073.41 | K27: 115.4748277 | N27: 62355073.41 | O27: 115.4748277 | P27: 5.988861385e-14
J28: 87819254 | K28: 75.78677718 | N28: 87819254 | O28: 75.78677718 | P28: 4.47917966e-14
J29: 98826131.37 | K29: 67.4228752 | N29: 98826131.37 | O29: 67.4228752 | P29: 0
A43: 102389.7329 | B43: 2391.175304 | K43: 101187.812 | L43: 28.0688567
A44: 205504.1104 | B44: 2419.971635 | K44: 164204.3339 | L44: 40.40208858
A45: 398107.1706 | B45: 2536.746009 | K45: 242446.2017 | L45: 60.22408287
A46: 608997.3244 | B46: 2627.922497 | K46: 333485.4751 | L46: 99.74579249
A47: 818126.5992 | B47: 2537.361787 | K47: 448004.1647 | L47: 208.8355099
A48: 1048365.741 | B48: 2365.244508 | K48: 601848.4959 | L48: 432.0922027
A49: 1566288.628 | B49: 1744.212639 | K49: 799031.8714 | L49: 758.6278381
A50: 2312610.878 | B50: 1286.311989 | K50: 920666.9732 | L50: 936.9115188
A51: 2998631.349 | B51: 994.1281887 | K51: 1152228.098 | L51: 1078.547046
A52: 4173619.189 | B52: 759.4224177 | K52: 1741909.714 | L52: 1301.290107
A53: 5673435.918 | B53: 580.1446046 | K53: 2180025.323 | L53: 1348.00498
A54: 7621690.026 | B54: 422.9129377 | K54: 2664655.233 | L54: 1271.417071
A55: 10238973.29 | B55: 290.7686838 | K55: 3070290.63 | L55: 1157.72775
A56: 13276295.89 | B56: 182.0350284 | K56: 4273357.542 | L56: 994.3278347
A57: 17214619.82 | B57: 100.1917314 | K57: 6089973.244 | L57: 864.087882
A58: 20070773.16 | B58: 59.85359009 | K58: 8181265.992 | L58: 750.8972937
A59: 23678761.02 | B59: 32.94326759 | K59: 10990707.27 | L59: 660.2364607
A60: 26333756.81 | B60: 16.7039654 | K60: 15117750.71 | L60: 534.8401556
A61: 27935332.58 | B61: 10.70481109 | K61: 21291444.57 | L61: 394.5275336
K62: 29286445.65 | L62: 280.9862723
K63: 43754793.75 | L63: 175.957127
K64: 62355073.41 | L64: 115.4748277
K65: 87819254 | L65: 75.78677718
K66: 98826131.37 | L66: 67.4228752 | Q66: x
